fUST/lending_fUST_20250731
["ID","MTS","AMOUNT","RATE_DAILY","PERIOD"]
[376317883,1753931449270,-460.0,0.00019768,2]
[376317884,1753931449280,-460.0,0.00019768,2]
[376317885,1753931449289,-460.0,0.00019768,2]
[376317886,1753931449299,-460.0,0.00019768,2]
[376317887,1753931449309,-460.0,0.00019768,2]
[376317888,1753931449319,-460.0,0.00019768,2]
[376317889,1753931449328,-460.0,0.00019768,2]
[376317890,1753931449339,-460.0,0.00019768,2]
[376317891,1753931449348,-460.0,0.00019768,2]
[376317892,1753931449358,-1365.67,0.00019768,2]
[376317893,1753931449367,-460.0,0.00019768,2]
[376317894,1753931449377,-460.0,0.00019768,2]
[376317895,1753931449386,-460.0,0.00019768,2]
[376317896,1753931449395,-460.0,0.00019768,2]
[376317897,1753931449404,-707.83,0.00019768,2]
[376317898,1753931449414,-460.91038888,0.00019768,2]
[376317899,1753931449423,-460.0,0.00019768,2]
[376317900,1753931449433,-460.0,0.00019768,2]
[376317901,1753931449442,-460.0,0.00019768,2]
[376317902,1753931449451,-460.0,0.00019768,2]
[376317903,1753931449460,-460.0,0.00019768,2]
[376317904,1753931449470,-547.76,0.00019768,2]
[376317905,1753931449479,-460.0,0.00019768,2]
[376317906,1753931449489,-460.0,0.00019768,2]
[376317907,1753931449498,-460.0,0.00019768,2]
[376317908,1753931449507,-460.0,0.00019768,2]
[376317909,1753931449516,-460.0,0.00019768,2]
[376317910,1753931449526,-461.88083408,0.00019768,2]
[376317911,1753931449535,-462.42085366,0.00019768,2]
[376317912,1753931449544,-460.0,0.00019768,2]
[376317913,1753931449553,-460.0,0.00019768,2]
[376317914,1753931449563,-181.06151433,0.00019768,2]
[376317915,1753931449572,-190.98447161,0.00019768,2]
[376317916,1753931449581,-198.92204423,0.00019768,2]
[376317917,1753931449594,-151.0,0.00019769,2]
[376317918,1753931449603,-196.680338,0.00019769,2]
[376317919,1753931449612,-196.680338,0.00019769,2]
[376317920,1753931449621,-1107.59,0.00019769,2]
[376317921,1753931449632,-460.0,0.00019769,2]
[376317922,1753931449641,-460.0,0.00019769,2]
[376317923,1753931449650,-460.0,0.00019769,2]
[376317924,1753931449659,-151.0,0.0001977,2]
[376317925,1753931449669,-151.241318,0.0001977,2]
[376317926,1753931449679,-151.241318,0.0001977,2]
[376317927,1753931449688,-151.0,0.0001977,2]
[376317928,1753931449698,-462.85848619,0.0001977,2]
[376317929,1753931449707,-460.0,0.0001977,2]
[376317930,1753931449716,-462.64498655,0.0001977,2]
[376317931,1753931449728,-601.47430154,0.0001977,2]
[376317932,1753931449738,-460.0,0.0001977,2]
[376317933,1753931449747,-460.0,0.0001977,2]
[376317934,1753931449756,-462.75009355,0.0001977,2]
[376317935,1753931449765,-248.6908703,0.0001977,2]
[376317936,1753931449774,-461.47925515,0.0001977,2]
[376317937,1753931449783,-460.0,0.0001977,2]
[376317938,1753931449793,-460.0,0.0001977,2]
[376317939,1753931449802,-460.0,0.0001977,2]
[376317940,1753931449812,-460.0,0.0001977,2]
[376317941,1753931449822,-460.0,0.0001977,2]
[376317942,1753931449832,-462.00586785,0.0001977,2]
[376317943,1753931449841,-460.0,0.0001977,2]
[376317944,1753931449851,-460.0,0.0001977,2]
[376317945,1753931449860,-460.0,0.0001977,2]
[376317946,1753931449869,-461.8567057,0.0001977,2]
[376317947,1753931449943,-460.0,0.0001977,2]
[376317948,1753931449952,-428.71029452,0.0001977,2]
[376317949,1753931449961,-460.0,0.0001977,2]
[376317950,1753931449971,-460.0,0.0001977,2]
[376317951,1753931449980,-151.0,0.0001977,2]
[376317952,1753931449989,-462.37626237,0.0001977,2]
[376317953,1753931449998,-460.0,0.0001977,2]
[376317954,1753931450008,-550.67570272,0.0001977,2]
[376317955,1753931450017,-462.63166474,0.0001977,2]
[376317956,1753931450027,-376.54009996,0.0001977,2]
[376317957,1753931450036,-460.0,0.0001977,2]
[376317958,1753931450045,-196.680338,0.0001977,2]
[376317959,1753931450054,-463.24252208,0.0001977,2]
[376317960,1753931450064,-196.680333,0.0001977,2]
[376317961,1753931450073,-460.0,0.0001977,2]
[376317962,1753931450082,-460.0,0.0001977,2]
[376317963,1753931450092,-460.0,0.0001977,2]
[376317964,1753931450101,-460.0,0.0001977,2]
[376317965,1753931450111,-460.0,0.0001977,2]
[376317966,1753931450121,-460.0,0.0001977,2]
[376317967,1753931450130,-461.24174446,0.0001977,2]
[376317968,1753931450140,-460.0,0.0001977,2]
[376317969,1753931450149,-460.0,0.0001977,2]
[376317970,1753931450159,-461.1141798,0.0001977,2]
[376317971,1753931450168,-460.0,0.0001977,2]
[376317972,1753931450177,-460.0,0.0001977,2]
[376317973,1753931450186,-460.0,0.0001977,2]
[376317974,1753931450195,-461.39743721,0.0001977,2]
[376317975,1753931450205,-302.4875668,0.0001977,2]
[376317976,1753931450215,-460.0,0.0001977,2]
[376317977,1753931450224,-460.0,0.0001977,2]
[376317978,1753931450234,-460.0,0.0001977,2]
[376317979,1753931450243,-460.0,0.0001977,2]
[376317980,1753931450252,-460.0,0.0001977,2]
[376317981,1753931450261,-460.0,0.0001977,2]
[376317982,1753931450270,-464.29669518,0.0001977,2]
[376317983,1753931450279,-464.25898132,0.0001977,2]
[376317984,1753931450289,-460.0,0.0001977,2]
[376317985,1753931450298,-460.0,0.0001977,2]
[376317986,1753931450307,-460.0,0.0001977,2]
[376317987,1753931450317,-493.48308216,0.0001977,2]
[376317988,1753931450326,-463.99655373,0.0001977,2]
[376317989,1753931450335,-460.83389799,0.0001977,2]
[376317990,1753931450344,-460.0,0.0001977,2]
[376317991,1753931450353,-460.0,0.0001977,2]
[376317992,1753931450362,-330.34100537,0.0001977,2]
[376317993,1753931450371,-460.0,0.0001977,2]
[376317994,1753931450380,-460.0,0.0001977,2]
[376317995,1753931450390,-262.10867834,0.0001977,2]
[376317996,1753931450413,-460.0,0.0001977,2]
[376317997,1753931450430,-460.0,0.0001977,2]
[376317998,1753931450449,-460.0,0.0001977,2]
[376317999,1753931450467,-460.0,0.0001977,2]
[376318000,1753931450483,-500.0,0.0001977,2]
[376318001,1753931450501,-460.0,0.0001977,2]
[376318002,1753931450520,-724.335533,0.0001977,2]
[376318003,1753931450539,-460.0,0.0001977,2]
[376318004,1753931450558,-460.0,0.0001977,2]
[376318005,1753931450576,-724.335533,0.0001977,2]
[376318006,1753931450593,-460.0,0.0001977,2]
[376318007,1753931450606,-460.0,0.0001977,2]
[376318008,1753931450625,-460.0,0.0001977,2]
[376318009,1753931450638,-460.0,0.0001977,2]
[376318010,1753931450654,-461.72719874,0.0001977,2]
[376318011,1753931450668,-460.0,0.0001977,2]
[376318012,1753931450682,-461.64850267,0.0001977,2]
[376318013,1753931450697,-460.0,0.0001977,2]
[376318014,1753931450711,-460.0,0.0001977,2]
[376318015,1753931450726,-460.78934129,0.0001977,2]
[376318016,1753931450740,-460.0,0.0001977,2]
[376318017,1753931450755,-460.0,0.0001977,2]
[376318018,1753931450769,-460.0,0.0001977,2]
[376318019,1753931450783,-460.0,0.0001977,2]
[376318020,1753931450798,-460.0,0.0001977,2]
[376318021,1753931450812,-460.0,0.0001977,2]
[376318022,1753931450826,-460.0,0.0001977,2]
[376318023,1753931450840,-460.0,0.0001977,2]
[376318024,1753931450854,-460.0,0.0001977,2]
[376318025,1753931450869,-460.0,0.0001977,2]
[376318026,1753931450884,-460.0,0.0001977,2]
[376318027,1753931450899,-460.0,0.0001977,2]
[376318028,1753931450914,-460.0,0.0001977,2]
[376318029,1753931450929,-460.0,0.0001977,2]
[376318030,1753931450944,-460.0,0.0001977,2]
[376318031,1753931450959,-463.60317453,0.0001977,2]
[376318032,1753931450973,-460.0,0.0001977,2]
[376318033,1753931450988,-207.77719308,0.0001977,2]
[376318034,1753931451003,-460.0,0.0001977,2]
[376318035,1753931451017,-460.0,0.0001977,2]
[376318036,1753931451032,-460.0,0.0001977,2]
[376318037,1753931451046,-460.0,0.0001977,2]
[376318038,1753931451061,-460.0,0.0001977,2]
[376318039,1753931451075,-460.0,0.0001977,2]
[376318040,1753931451089,-460.0,0.0001977,2]
[376318041,1753931451104,-460.0,0.0001977,2]
[376318042,1753931451118,-456.04702486,0.0001977,2]
[376318043,1753931451133,-460.0,0.0001977,2]
[376318044,1753931451232,-460.0,0.0001977,2]
[376318045,1753931451242,-462.7549465,0.0001977,2]
[376318046,1753931451251,-460.0,0.0001977,2]
[376318047,1753931451262,-215.29092037,0.0001977,2]
[376318048,1753931451271,-460.0,0.0001977,2]
[376318049,1753931451280,-460.0,0.0001977,2]
[376318050,1753931451290,-460.0,0.0001977,2]
[376318051,1753931451300,-460.0,0.0001977,2]
[376318052,1753931451309,-460.0,0.0001977,2]
[376318053,1753931451319,-460.0,0.0001977,2]
[376318054,1753931451328,-460.0,0.0001977,2]
[376318055,1753931451337,-461.73762684,0.0001977,2]
[376318056,1753931451346,-460.0,0.0001977,2]
[376318057,1753931451355,-460.60687235,0.0001977,2]
[376318058,1753931451365,-460.0,0.0001977,2]
[376318059,1753931451375,-460.0,0.0001977,2]
[376318060,1753931451384,-461.22464382,0.0001977,2]
[376318061,1753931451393,-460.0,0.0001977,2]
[376318062,1753931451402,-460.0,0.0001977,2]
[376318063,1753931451412,-462.37994336,0.0001977,2]
[376318064,1753931451422,-460.0,0.0001977,2]
[376318065,1753931451431,-460.0,0.0001977,2]
[376318066,1753931451440,-460.0,0.0001977,2]
[376318067,1753931451450,-460.0,0.0001977,2]
[376318068,1753931451460,-460.0,0.0001977,2]
[376318069,1753931451470,-460.0,0.0001977,2]
[376318070,1753931451479,-460.0,0.0001977,2]
[376318071,1753931451489,-200.530298,0.00019771,2]
[376318072,1753931451500,-200.530298,0.00019771,2]
[376318073,1753931451510,-152.987253,0.00019771,2]
[376318074,1753931451519,-228.708592,0.00019771,2]
[376318075,1753931451528,-228.708592,0.00019771,2]
[376318076,1753931451537,-151.0,0.00019771,2]
[376318077,1753931451547,-460.0,0.00019771,2]
[376318078,1753931451556,-151.0,0.00019771,2]
[376318079,1753931451565,-461.58217338,0.00019771,2]
[376318080,1753931451575,-250.95057268,0.00019771,2]
[376318081,1753931451584,-460.0,0.00019771,2]
[376318082,1753931451597,-151.241318,0.00019771,2]
[376318083,1753931451607,-460.0,0.00019771,2]
[376318084,1753931451616,-151.241318,0.00019771,2]
[376318085,1753931451625,-460.0,0.00019771,2]
[376318086,1753931451635,-550.90315727,0.00019771,2]
[376318087,1753931451644,-460.0,0.00019771,2]
[376318088,1753931451653,-460.0,0.00019771,2]
[376318089,1753931451664,-460.0,0.00019771,2]
[376318090,1753931451674,-460.0,0.00019771,2]
[376318091,1753931451684,-724.335533,0.00019771,2]
[376318092,1753931451693,-342.08229717,0.00019771,2]
[376318093,1753931451702,-724.335531,0.00019771,2]
[376318094,1753931451711,-460.0,0.00019771,2]
[376318095,1753931451720,-462.59131511,0.00019771,2]
[376318096,1753931451729,-463.53670694,0.00019771,2]
[376318097,1753931451738,-547.57571598,0.00019771,2]
[376318098,1753931451747,-460.0,0.00019771,2]
[376318099,1753931451756,-460.0,0.00019771,2]
[376318100,1753931451768,-460.0,0.00019771,2]
[376318101,1753931451777,-460.0,0.00019771,2]
[376318102,1753931451786,-460.0,0.00019771,2]
[376318103,1753931451796,-460.0,0.00019771,2]
[376318104,1753931451806,-460.0,0.00019771,2]
[376318105,1753931451815,-460.0,0.00019771,2]
[376318106,1753931451824,-460.0,0.00019771,2]
[376318107,1753931451834,-460.0,0.00019771,2]
[376318108,1753931451843,-460.0,0.00019771,2]
[376318109,1753931451852,-460.0,0.00019771,2]
[376318110,1753931451862,-463.54521358,0.00019771,2]
[376318111,1753931451871,-462.74949345,0.00019771,2]
[376318112,1753931451880,-460.0,0.00019771,2]
[376318113,1753931451889,-460.0,0.00019771,2]
[376318114,1753931451898,-200.530298,0.00019772,2]
[376318115,1753931451908,-200.530298,0.00019772,2]
[376318116,1753931451917,-151.0,0.00019772,2]
[376318117,1753931451927,-500.45110759,0.00019773,2]
[376318118,1753931451936,-151.0,0.00019773,2]
[376318119,1753931451946,-151.0,0.00019773,2]
[376318120,1753931451955,-151.567504,0.00019773,2]
[376318121,1753931451964,-151.0,0.00019773,2]
[376318122,1753931451974,-151.0,0.00019773,2]
[376318123,1753931451995,-200.530298,0.00019773,2]
[376318124,1753931452005,-200.530298,0.00019773,2]
[376318125,1753931452015,-228.708592,0.00019773,2]
[376318126,1753931452025,-228.708592,0.00019773,2]
[376318127,1753931452035,-228.708592,0.00019773,2]
[376318128,1753931452044,-228.708588,0.00019773,2]
[376318129,1753931452054,-151.0,0.00019773,2]
[376318130,1753931452064,-151.0,0.00019773,2]
[376318131,1753931452074,-151.0,0.00019774,2]
[376318132,1753931452084,-151.851669,0.00019774,2]
[376318133,1753931452094,-151.0,0.00019774,2]
[376318134,1753931452104,-153.150425,0.00019774,2]
[376318135,1753931452114,-151.0,0.00019774,2]
[376318136,1753931452125,-151.0,0.00019774,2]
[376318137,1753931452135,-200.530298,0.00019774,2]
[376318138,1753931452144,-200.530298,0.00019774,2]
[376318139,1753931452154,-200.530298,0.00019774,2]
[376318140,1753931452165,-200.530298,0.00019774,2]
[376318141,1753931452175,-200.530298,0.00019774,2]
[376318142,1753931452185,-200.530303,0.00019774,2]
[376318143,1753931452195,-262.984284,0.00019774,2]
[376318144,1753931452205,-258.384957,0.00019799,2]
[376318145,1753931452215,-151.0,0.0001985,2]
[376318146,1753931452224,-181.444036,0.0001985,2]
[376318147,1753931452235,-151.0,0.00019851,2]
[376318148,1753931452245,-436.6072421,0.00019863,2]
[376318149,1753931452255,-430.2201461,0.00019863,2]
[376318150,1753931452265,-430.2201461,0.00019863,2]
[376318151,1753931452367,-430.2201461,0.00019863,2]
[376318152,1753931452378,-429.4439306,0.00019863,2]
[376318153,1753931452388,-460.0,0.00019892,2]
[376318154,1753931452397,-460.0,0.00019895,2]
[376318155,1753931452406,-460.0,0.00019895,2]
[376318156,1753931452416,-460.0,0.00019895,2]
[376318157,1753931452425,-1595.41,0.00019895,2]
[376318158,1753931452434,-460.0,0.00019895,2]
[376318159,1753931452443,-561.1516758,0.00019895,2]
[376318160,1753931452452,-3904.81,0.00019895,2]
[376318161,1753931452462,-464.50103129,0.00019895,2]
[376318162,1753931452471,-5052.79850153,0.00019897,2]
[376318163,1753931452481,-5000.0,0.00019897,2]
[376318164,1753931452490,-3501.39913364,0.000199,2]
[376318165,1753931452500,-460.0,0.0001992,2]
[376318166,1753931452509,-457.52404081,0.0001992,2]
[376318167,1753931452519,-2329.78,0.0001992,2]
[376318168,1753931452528,-460.0,0.0001992,2]
[376318169,1753931452537,-460.0,0.0001992,2]
[376318170,1753931452546,-460.0,0.0001992,2]
[376318171,1753931452557,-460.0,0.0001992,2]
[376318172,1753931452566,-460.0,0.0001992,2]
[376318173,1753931452579,-460.0,0.0001992,2]
[376318174,1753931452592,-1612.73,0.0001992,2]
[376318175,1753931452605,-1521.49,0.0001992,2]
[376318176,1753931452615,-460.0,0.0001992,2]
[376318177,1753931452625,-460.0,0.0001992,2]
[376318178,1753931452635,-460.0,0.0001992,2]
[376318179,1753931452644,-974.15,0.0001992,2]
[376318180,1753931452654,-197.42036994,0.0001992,2]
[376318181,1753931452664,-460.0,0.0001992,2]
[376318182,1753931452674,-308.30705908,0.0001992,2]
[376318183,1753931452683,-460.0,0.0001992,2]
[376318184,1753931452692,-461.34,0.0001992,2]
[376318185,1753931452701,-460.0,0.0001992,2]
[376318186,1753931452711,-557.18,0.0001992,2]
[376318187,1753931452721,-460.0,0.0001992,2]
[376318188,1753931452730,-460.0,0.0001992,2]
[376318189,1753931452739,-1085.26,0.0001992,2]
[376318190,1753931452748,-460.0,0.0001992,2]
[376318191,1753931452758,-460.0,0.0001992,2]
[376318192,1753931452768,-460.0,0.0001992,2]
[376318193,1753931452777,-460.0,0.0001992,2]
[376318194,1753931452786,-460.0,0.0001992,2]
[376318195,1753931452796,-292.68202547,0.00019921,2]
[376318196,1753931452805,-500.0,0.00019941,2]
[376318197,1753931452815,-460.0,0.00019941,2]
[376318198,1753931452824,-460.0,0.00019941,2]
[376318199,1753931452834,-460.0,0.00019941,2]
[376318200,1753931452843,-460.0,0.00019941,2]
[376318201,1753931452853,-460.0,0.00019941,2]
[376318202,1753931452863,-460.0,0.00019941,2]
[376318203,1753931452872,-460.0,0.00019941,2]
[376318204,1753931452882,-460.0,0.00019941,2]
[376318205,1753931452892,-460.0,0.00019941,2]
[376318206,1753931452902,-460.0,0.00019941,2]
[376318207,1753931452911,-460.0,0.00019941,2]
[376318208,1753931452920,-460.0,0.00019941,2]
[376318209,1753931452930,-419.18417672,0.00019941,2]
[376318210,1753931452940,-460.0,0.00019941,2]
[376318211,1753931452950,-206.03406597,0.00019941,2]
[376318212,1753931452959,-461.8747311,0.00019941,2]
[376318213,1753931452969,-460.0,0.00019941,2]
[376318214,1753931452978,-460.0,0.00019941,2]
[376318215,1753931452987,-366.58270483,0.00019941,2]
[376318216,1753931452997,-460.0,0.00019941,2]
[376318217,1753931453007,-460.0,0.00019941,2]
[376318218,1753931453016,-462.30127042,0.00019941,2]
[376318219,1753931453026,-460.0,0.00019941,2]
[376318220,1753931453035,-462.13358071,0.00019941,2]
[376318221,1753931453047,-460.0,0.00019941,2]
[376318222,1753931453057,-460.0,0.00019941,2]
[376318223,1753931453066,-460.0,0.00019941,2]
[376318224,1753931453076,-460.0,0.00019941,2]
[376318225,1753931453085,-460.0,0.00019941,2]
[376318226,1753931453095,-307.13115317,0.00019941,2]
[376318227,1753931453104,-460.0,0.00019941,2]
[376318228,1753931453114,-460.0,0.00019941,2]
[376318229,1753931453124,-460.0,0.00019941,2]
[376318230,1753931453133,-460.0,0.00019941,2]
[376318231,1753931453143,-460.0,0.00019941,2]
[376318232,1753931453153,-460.0,0.00019941,2]
[376318233,1753931453162,-460.0,0.00019941,2]
[376318234,1753931453172,-460.0,0.00019941,2]
[376318235,1753931453181,-401.44951703,0.00019941,2]
[376318236,1753931453190,-460.0,0.00019941,2]
[376318237,1753931453200,-460.0,0.00019941,2]
[376318238,1753931453209,-460.0,0.00019941,2]
[376318239,1753931453220,-462.50114654,0.00019941,2]
[376318240,1753931453229,-469.42350725,0.00019941,2]
[376318241,1753931453239,-460.0,0.00019941,2]
[376318242,1753931453248,-460.0,0.00019941,2]
[376318243,1753931453258,-460.0,0.00019941,2]
[376318244,1753931453268,-460.0,0.00019941,2]
[376318245,1753931453277,-460.0,0.00019941,2]
[376318246,1753931453286,-466.26964999,0.00019941,2]
[376318247,1753931453296,-307.53962232,0.00019941,2]
[376318248,1753931453305,-460.0,0.00019941,2]
[376318250,1753931453315,-460.0,0.00019941,2]
[376318252,1753931453324,-460.0,0.00019941,2]
[376318253,1753931453334,-460.0,0.00019941,2]
[376318256,1753931453345,-460.0,0.00019941,2]
[376318257,1753931453355,-461.8807633,0.00019941,2]
[376318258,1753931453364,-460.0,0.00019941,2]
[376318259,1753931453374,-460.0,0.00019941,2]
[376318260,1753931453384,-460.0,0.00019941,2]
[376318262,1753931453394,-460.0,0.00019941,2]
[376318263,1753931453403,-460.0,0.00019941,2]
[376318264,1753931453414,-460.0,0.00019941,2]
[376318265,1753931453423,-460.0,0.00019941,2]
[376318266,1753931453433,-460.0,0.00019941,2]
[376318267,1753931453443,-460.0,0.00019941,2]
[376318268,1753931453453,-460.0,0.00019941,2]
[376318269,1753931453462,-460.0,0.00019941,2]
[376318270,1753931453472,-460.0,0.00019941,2]
[376318271,1753931453481,-463.59859487,0.00019941,2]
[376318272,1753931453491,-460.0,0.00019941,2]
[376318273,1753931453501,-460.0,0.00019941,2]
[376318274,1753931453511,-460.0,0.00019941,2]
[376318275,1753931453520,-460.0,0.00019941,2]
[376318276,1753931453530,-460.0,0.00019941,2]
[376318277,1753931453540,-460.0,0.00019941,2]
[376318278,1753931453550,-460.0,0.00019941,2]
[376318279,1753931453560,-460.0,0.00019941,2]
[376318280,1753931453570,-460.0,0.00019941,2]
[376318281,1753931453579,-460.0,0.00019941,2]
[376318282,1753931453589,-460.0,0.00019941,2]
[376318283,1753931453601,-460.0,0.00019941,2]
[376318284,1753931453611,-460.0,0.00019941,2]
[376318285,1753931453621,-524.63738466,0.00019941,2]
[376318286,1753931453632,-587.94,0.00019941,2]
[376318287,1753931453642,-460.0,0.00019941,2]
[376318288,1753931453652,-469.34165826,0.00019941,2]
[376318290,1753931453662,-616.71,0.00019941,2]
[376318291,1753931453674,-460.0,0.00019941,2]
[376318292,1753931453683,-460.0,0.00019941,2]
[376318293,1753931453693,-460.0,0.00019941,2]
[376318294,1753931453702,-460.0,0.00019941,2]
[376318295,1753931453712,-460.0,0.00019941,2]
[376318296,1753931453722,-460.0,0.00019941,2]
[376318297,1753931453731,-460.0,0.00019941,2]
[376318298,1753931453741,-460.0,0.00019941,2]
[376318299,1753931453751,-460.0,0.00019941,2]
[376318300,1753931453762,-460.0,0.00019941,2]
[376318301,1753931453771,-460.0,0.00019941,2]
[376318302,1753931453780,-463.471681,0.00019941,2]
[376318303,1753931453790,-460.0,0.00019941,2]
[376318304,1753931453799,-460.0,0.00019941,2]
[376318305,1753931453809,-460.0,0.00019941,2]
[376318306,1753931453818,-460.0,0.00019941,2]
[376318307,1753931453828,-460.0,0.00019941,2]
[376318308,1753931453837,-460.0,0.00019941,2]
[376318309,1753931453850,-460.0,0.00019941,2]
[376318310,1753931453859,-460.0,0.00019941,2]
[376318311,1753931453868,-460.0,0.00019941,2]
[376318312,1753931453878,-460.0,0.00019941,2]
[376318313,1753931453887,-460.0,0.00019941,2]
[376318314,1753931453896,-460.0,0.00019941,2]
[376318315,1753931453906,-460.0,0.00019941,2]
[376318316,1753931453916,-460.0,0.00019941,2]
[376318317,1753931453926,-460.0,0.00019941,2]
[376318318,1753931453936,-460.0,0.00019941,2]
[376318319,1753931453945,-460.0,0.00019941,2]
[376318320,1753931453966,-463.22893276,0.00019941,2]
[376318321,1753931453976,-460.0,0.00019941,2]
[376318322,1753931453986,-462.10530512,0.00019941,2]
[376318323,1753931453996,-460.0,0.00019941,2]
[376318324,1753931454006,-460.0,0.00019941,2]
[376318325,1753931454016,-460.0,0.00019941,2]
[376318326,1753931454025,-460.0,0.00019941,2]
[376318327,1753931454035,-462.6307,0.00019941,2]
[376318328,1753931454045,-541.91,0.00019941,2]
[376318329,1753931454055,-460.0,0.00019941,2]
[376318330,1753931454065,-460.0,0.00019941,2]
[376318331,1753931454075,-460.0,0.00019941,2]
[376318332,1753931454084,-460.0,0.00019941,2]
[376318333,1753931454095,-460.0,0.00019941,2]
[376318334,1753931454105,-460.0,0.00019941,2]
[376318335,1753931454115,-460.0,0.00019941,2]
[376318336,1753931454125,-460.0,0.00019941,2]
[376318337,1753931454136,-460.0,0.00019941,2]
[376318338,1753931454146,-460.0,0.00019941,2]
[376318339,1753931454156,-460.0,0.00019941,2]
[376318340,1753931454165,-460.0,0.00019941,2]
[376318341,1753931454175,-460.0,0.00019941,2]
[376318342,1753931454185,-460.0,0.00019941,2]
[376318343,1753931454194,-460.0,0.00019941,2]
[376318344,1753931454204,-460.0,0.00019941,2]
[376318345,1753931454214,-460.0,0.00019941,2]
[376318346,1753931454224,-460.0,0.00019941,2]
[376318347,1753931454234,-460.0,0.00019941,2]
[376318348,1753931454245,-460.0,0.00019941,2]
[376318349,1753931454255,-500.0,0.00019943,2]
[376318350,1753931454264,-460.0,0.00019946,2]
[376318351,1753931454274,-460.0,0.00019946,2]
[376318352,1753931454283,-533.48755075,0.00019946,2]
[376318353,1753931454292,-460.0,0.00019946,2]
[376318354,1753931454302,-460.0,0.00019946,2]
[376318355,1753931454312,-460.0,0.00019946,2]
[376318356,1753931454321,-460.0,0.00019946,2]
[376318357,1753931454331,-460.0,0.00019946,2]
[376318359,1753931454340,-1658.07,0.00019946,2]
[376318360,1753931454351,-460.0,0.00019946,2]
[376318362,1753931454364,-460.0,0.00019946,2]
[376318363,1753931454384,-460.0,0.00019946,2]
[376318364,1753931454400,-3726.47,0.00019946,2]
[376318365,1753931454409,-219.49830544,0.00019946,2]
[376318366,1753931454418,-460.0,0.00019946,2]
[376318367,1753931454427,-641.87,0.00019946,2]
[376318368,1753931454437,-1379.98,0.00019946,2]
[376318369,1753931454446,-460.0,0.00019946,2]
[376318370,1753931454456,-1704.11,0.00019946,2]
[376318371,1753931454465,-500.0,0.00019973,2]
[376318372,1753931454475,-297.48283727,0.00019973,2]
[376318373,1753931454484,-500.0,0.00019973,2]
[376318374,1753931454617,-500.92416832,0.00019973,2]
[376318375,1753931454628,-500.97682814,0.00019973,2]
[376318376,1753931454638,-501.37982729,0.00019973,2]
[376318377,1753931454648,-500.0,0.00019973,2]
[376318378,1753931454657,-500.0,0.00019973,2]
[376318379,1753931454668,-500.0,0.00019973,2]
[376318380,1753931454678,-177.91230845,0.00019973,2]
[376318381,1753931454687,-500.0,0.00019973,2]
[376318382,1753931454696,-500.0,0.00019973,2]
[376318383,1753931454705,-501.13136156,0.00019973,2]
[376318384,1753931454715,-500.0,0.00019973,2]
[376318385,1753931454726,-501.35243311,0.00019973,2]
[376318386,1753931454736,-501.38135654,0.00019973,2]
[376318388,1753931454745,-500.0,0.00019973,2]
[376318390,1753931454756,-600.0,0.00019973,2]
[376318392,1753931454766,-500.0,0.00019973,2]
[376318394,1753931454775,-500.0,0.00019973,2]